Workbook

Sheet Cover
A3: Navigator
C5: =Client_Name -> SumProduct Pty Limited
C6: =Model_Name -> SP Calculating Inventory on a FIFO Basis.xlsm
C14: Primary Developer: Liam Bastick
C16: General Cover Notes:
C17: Simple example to demonstrate how calculating inventory
C18: on a FIFO (First In, First Out) basis might work.
C21: Any queries, please e-mail: | G21: liam.bastick@sumproduct.com
C22: Website: | G22: www.sumproduct.com

Sheet Navigator
A1: Navigator
A2: =Model_Name -> SP Calculating Inventory on a FIFO Basis.xlsm
A3: Navigator
E4: Error Checks: | G4: =Overall_Error_Check -> 0
B7: 1 | C7: Table of Contents
F9: Cover
F10: Style Guide
F11: Model Parameters
F12: Calculating on a FIFO Basis
F13: Timing
F14: Error Checks

Sheet Style Guide
A1: =IF(ISERROR(RIGHT(CELL("filename",A1),LEN(CELL("filename",A1))-FIND("]",CELL("filename",A1)))), "", RIGHT(CELL("filename",A1),LEN(CELL("filename",A1))-FIND("]",CELL("filename",A1)))) -> Style Guide
A2: =Model_Name -> SP Calculating Inventory on a FIFO Basis.xlsm
A3: Navigator
E4: Error Checks: | I4: =Overall_Error_Check -> 0
B6: =MAX($B$5:$B5)+1 -> 1 | C6: Formatting of Headers / Dividers
C8: Description | I8: Display | K8: Style Name
C10: Sheet Title | I10: =C10 -> Sheet Title | K10: Sheet Title
C11: Model Name | I11: =C11 -> Model Name | K11: Model Name
C13: Header 1 | I13: =C13 -> Header 1 | K13: Header 1
C14: Header 2 | I14: =C14 -> Header 2 | K14: Header 2
C15: Header 3 | I15: =C15 -> Header 3 | K15: Header 3
C16: Header 4 | I16: =C16 -> Header 4 | K16: Header 4
C18: Notes | I18: =C18 -> Notes | K18: Notes
C20: Table Heading | I20: =C20 -> Table Heading | K20: Table Heading
B23: =MAX($B$5:$B22)+1 -> 2 | C23: Individual Cell Styles
C25: Description | I25: Display | K25: Style Name
C27: Assumption | I27: Assumption | K27: =C27 -> Assumption
C29: Constraint | I29: =C29 -> Constraint | K29: =C29 -> Constraint
C31: Empty | K31: =C31 -> Empty
C33: Error Check | I33: 0 | K33: =C33 -> Error Check
C35: Hyperlink | I35: Hyperlink | K35: =C35 -> Hyperlink
C37: Internal Reference | I37: ='Error Checks'!E12 -> Movement in Shares is not net negative | K37: =C37 -> Internal Reference
C39: Line Calculation | I39: 77 | K39: Line Calc
C41: Line Total | I41: =I39 -> 77 | K41: =C41 -> Line Total
C43: Parameter | I43: 365 | K43: =C43 -> Parameter
C45: Range Name Description | I45: Not_Named | K45: =C45 -> Range Name Description
C47: Row Reference | I47: =ROW(C47) -> 47 | K47: Row Ref
C49: Row Summary | I49: =I41 -> 77 | K49: =C49 -> Row Summary
C51: Units | I51: A$ | K51: =C51 -> Units
C53: WIP | K53: =C53 -> WIP
B56: =MAX($B$5:$B55)+1 -> 3 | C56: Numerical Styles
C58: Description | I58: Display | K58: Style Name
C60: Comma | I60: 123456.789 | K60: =C60 -> Comma
C62: Comma [0] | I62: -123456.789 | K62: Comma [0]
C64: Currency | I64: 123456.789 | K64: Currency
C66: Currency [0] | I66: 123456.789 | K66: Currency [0]
C68: Date | I68: =TODAY() -> 2021-01-06 | K68: =C68 -> Date
C70: Date Heading | I70: =TODAY() -> 2021-01-06 | K70: =C70 -> Date Heading
C72: Numbers 0 | I72: -123456.789 | K72: =C72 -> Numbers 0
C74: Percent | I74: 0.5 | K74: =C74 -> Percent

Sheet Model Parameters
A1: =IF(ISERROR(RIGHT(CELL("filename",A1),LEN(CELL("filename",A1))-FIND("]",CELL("filename",A1)))), "", RIGHT(CELL("filename",A1),LEN(CELL("filename",A1))-FIND("]",CELL("filename",A1)))) -> Model Parameters
A2: =Model_Name -> SP Calculating Inventory on a FIFO Basis.xlsm
A3: Navigator
E4: Error Checks: | I4: =Overall_Error_Check -> 0
B6: =MAX($B$5:$B5)+1 -> 1 | C6: General
C8: Key Inputs
E10: General
E11: Model Name | G11: =IF(ISERROR(OR(FIND("[",CELL("filename",A1)),FIND("]",CELL("filename",A1)))),"",MID(CELL("filename",A1),FIND("[",CELL("filename",A1))+1,FIND("]",CELL("filename",A1))-FIND("[",CELL("filename",A1))-1)) -> SP Calculating Inventory on a FIFO Basis.xlsm
E12: Client Name | G12: SumProduct Pty Limited
B15: =MAX($B$5:$B14)+1 -> 2 | C15: General Range Names
C17: Technical Assumptions
E19: Days in Year | G19: 365
E20: Months in Month | G20: 1
E21: Months in Quarter | G21: 3
E22: Months in Half Yr | G22: 6
E23: Months in Year | G23: 12
E24: Quarters in Year | G24: 4
E26: Rounding Accuracy | G26: 5
E28: Very Large Number | G28: 1e+99
E29: Very Small Number | G29: 1e-08
E31: Thousand | G31: 1000

Sheet Calculating on a FIFO Basis
A1: =IF(ISERROR(RIGHT(CELL("filename",A1),LEN(CELL("filename",A1))-FIND("]",CELL("filename",A1)))), "", RIGHT(CELL("filename",A1),LEN(CELL("filename",A1))-FIND("]",CELL("filename",A1)))) -> Calculating on a FIFO Basis
A2: =Model_Name -> SP Calculating Inventory on a FIFO Basis.xlsm
A3: Navigator
B4: Error Checks: | F4: =Overall_Error_Check -> 0
J5: =Timing!J5 -> 2021-03-31 | K5: =Timing!K5 -> 2021-06-30 | L5: =Timing!L5 -> 2021-09-30 | M5: =Timing!M5 -> 2021-12-31 | N5: =Timing!N5 -> 2022-03-31 | O5: =Timing!O5 -> 2022-06-30 | P5: =Timing!P5 -> 2022-09-30 | Q5: =Timing!Q5 -> 2022-12-31 | R5: =Timing!R5 -> 2023-03-31 | S5: =Timing!S5 -> 2023-06-30 | T5: =Timing!T5 -> 2023-09-30 | U5: =Timing!U5 -> 2023-12-31 | V5: =Timing!V5 -> 2024-03-31 | W5: =Timing!W5 -> 2024-06-30 | X5: =Timing!X5 -> 2024-09-30 | Y5: =Timing!Y5 -> 2024-12-31 | Z5: =Timing!Z5 -> 2025-03-31 | AA5: =Timing!AA5 -> 2025-06-30 | AB5: =Timing!AB5 -> 2025-09-30 | AC5: =Timing!AC5 -> 2025-12-31 | AD5: =Timing!AD5 -> 2026-03-31 | AE5: =Timing!AE5 -> 2026-06-30 | AF5: =Timing!AF5 -> 2026-09-30 | AG5: =Timing!AG5 -> 2026-12-31
C6: =Timing!C6 -> Start Date | J6: =Timing!J6 -> 2021-01-06 | K6: =Timing!K6 -> 2021-04-01 | L6: =Timing!L6 -> 2021-07-01 | M6: =Timing!M6 -> 2021-10-01 | N6: =Timing!N6 -> 2022-01-01 | O6: =Timing!O6 -> 2022-04-01 | P6: =Timing!P6 -> 2022-07-01 | Q6: =Timing!Q6 -> 2022-10-01 | R6: =Timing!R6 -> 2023-01-01 | S6: =Timing!S6 -> 2023-04-01 | T6: =Timing!T6 -> 2023-07-01 | U6: =Timing!U6 -> 2023-10-01 | V6: =Timing!V6 -> 2024-01-01 | W6: =Timing!W6 -> 2024-04-01 | X6: =Timing!X6 -> 2024-07-01 | Y6: =Timing!Y6 -> 2024-10-01 | Z6: =Timing!Z6 -> 2025-01-01 | AA6: =Timing!AA6 -> 2025-04-01 | AB6: =Timing!AB6 -> 2025-07-01 | AC6: =Timing!AC6 -> 2025-10-01 | AD6: =Timing!AD6 -> 2026-01-01 | AE6: =Timing!AE6 -> 2026-04-01 | AF6: =Timing!AF6 -> 2026-07-01 | AG6: =Timing!AG6 -> 2026-10-01
C7: =Timing!C7 -> End Date | J7: =Timing!J7 -> 2021-03-31 | K7: =Timing!K7 -> 2021-06-30 | L7: =Timing!L7 -> 2021-09-30 | M7: =Timing!M7 -> 2021-12-31 | N7: =Timing!N7 -> 2022-03-31 | O7: =Timing!O7 -> 2022-06-30 | P7: =Timing!P7 -> 2022-09-30 | Q7: =Timing!Q7 -> 2022-12-31 | R7: =Timing!R7 -> 2023-03-31 | S7: =Timing!S7 -> 2023-06-30 | T7: =Timing!T7 -> 2023-09-30 | U7: =Timing!U7 -> 2023-12-31 | V7: =Timing!V7 -> 2024-03-31 | W7: =Timing!W7 -> 2024-06-30 | X7: =Timing!X7 -> 2024-09-30 | Y7: =Timing!Y7 -> 2024-12-31 | Z7: =Timing!Z7 -> 2025-03-31 | AA7: =Timing!AA7 -> 2025-06-30 | AB7: =Timing!AB7 -> 2025-09-30 | AC7: =Timing!AC7 -> 2025-12-31 | AD7: =Timing!AD7 -> 2026-03-31 | AE7: =Timing!AE7 -> 2026-06-30 | AF7: =Timing!AF7 -> 2026-09-30 | AG7: =Timing!AG7 -> 2026-12-31
C8: =Timing!C8 -> Number of Days | J8: =Timing!J8 -> 85 | K8: =Timing!K8 -> 91 | L8: =Timing!L8 -> 92 | M8: =Timing!M8 -> 92 | N8: =Timing!N8 -> 90 | O8: =Timing!O8 -> 91 | P8: =Timing!P8 -> 92 | Q8: =Timing!Q8 -> 92 | R8: =Timing!R8 -> 90 | S8: =Timing!S8 -> 91 | T8: =Timing!T8 -> 92 | U8: =Timing!U8 -> 92 | V8: =Timing!V8 -> 91 | W8: =Timing!W8 -> 91 | X8: =Timing!X8 -> 92 | Y8: =Timing!Y8 -> 92 | Z8: =Timing!Z8 -> 90 | AA8: =Timing!AA8 -> 91 | AB8: =Timing!AB8 -> 92 | AC8: =Timing!AC8 -> 92 | AD8: =Timing!AD8 -> 90 | AE8: =Timing!AE8 -> 91 | AF8: =Timing!AF8 -> 92 | AG8: =Timing!AG8 -> 92
C9: =Timing!C9 -> Counter | J9: =Timing!J9 -> 1 | K9: =Timing!K9 -> 2 | L9: =Timing!L9 -> 3 | M9: =Timing!M9 -> 4 | N9: =Timing!N9 -> 5 | O9: =Timing!O9 -> 6 | P9: =Timing!P9 -> 7 | Q9: =Timing!Q9 -> 8 | R9: =Timing!R9 -> 9 | S9: =Timing!S9 -> 10 | T9: =Timing!T9 -> 11 | U9: =Timing!U9 -> 12 | V9: =Timing!V9 -> 13 | W9: =Timing!W9 -> 14 | X9: =Timing!X9 -> 15 | Y9: =Timing!Y9 -> 16 | Z9: =Timing!Z9 -> 17 | AA9: =Timing!AA9 -> 18 | AB9: =Timing!AB9 -> 19 | AC9: =Timing!AC9 -> 20 | AD9: =Timing!AD9 -> 21 | AE9: =Timing!AE9 -> 22 | AF9: =Timing!AF9 -> 23 | AG9: =Timing!AG9 -> 24
B11: =MAX($B$10:$B10)+1 -> 1 | C11: Acquisition and Disposal of Shares
C13: Assumptions
D15: Share Price
E17: Opening Price | H17: $ | I17: 100
E18: Periodic Growth Rate | H18: % | I18: 0.02
E20: Opening Price | H20: $ | J20: =IF(J$9=1,$I$17,I$21) -> 100 | K20: =IF(K$9=1,$I$17,J$21) -> 102 | L20: 104.04 | M20: 106.1208 | N20: 108.243216 | O20: 110.4080803 | P20: 112.6162419 | Q20: 114.8685668 | R20: 117.1659381 | S20: 119.5092569 | T20: 121.899442 | U20: 124.3374308 | V20: 126.8241795 | W20: 129.360663 | X20: 131.9478763 | Y20: 134.5868338 | Z20: 137.2785705 | AA20: 140.0241419 | AB20: 142.8246248 | AC20: 145.6811173 | AD20: 148.5947396 | AE20: 151.5666344 | AF20: 154.5979671 | AG20: 157.6899264
E21: Closing Price | H21: $ | J21: =J20*(1+$I$18) -> 102 | K21: 104.04 | L21: 106.1208 | M21: 108.243216 | N21: 110.4080803 | O21: 112.6162419 | P21: 114.8685668 | Q21: 117.1659381 | R21: 119.5092569 | S21: 121.899442 | T21: 124.3374308 | U21: 126.8241795 | V21: 129.360663 | W21: 131.9478763 | X21: 134.5868338 | Y21: 137.2785705 | Z21: 140.0241419 | AA21: 142.8246248 | AB21: 145.6811173 | AC21: 148.5947396 | AD21: 151.5666344 | AE21: 154.5979671 | AF21: 157.6899264 | AG21: 160.8437249
D23: Movements
E25: Acquisitions | H25: # | J25: 3 | L25: 2 | N25: 2 | P25: 1 | Q25: 1
E26: Disposals | H26: # | K26: 1 | M26: 3 | O26: 2 | R26: 3
E28: ="Cum. "&E25 -> Cum. Acquisitions | H28: # | J28: =SUM($J25:J25) -> 3 | K28: =SUM($J25:K25) -> 3 | L28: =SUM($J25:L25) -> 5 | M28: =SUM($J25:M25) -> 5 | N28: =SUM($J25:N25) -> 7 | O28: =SUM($J25:O25) -> 7 | P28: =SUM($J25:P25) -> 8 | Q28: =SUM($J25:Q25) -> 9 | R28: =SUM($J25:R25) -> 9 | S28: =SUM($J25:S25) -> 9 | T28: =SUM($J25:T25) -> 9 | U28: =SUM($J25:U25) -> 9 | V28: =SUM($J25:V25) -> 9 | W28: =SUM($J25:W25) -> 9 | X28: =SUM($J25:X25) -> 9 | Y28: =SUM($J25:Y25) -> 9 | Z28: =SUM($J25:Z25) -> 9 | AA28: =SUM($J25:AA25) -> 9 | AB28: =SUM($J25:AB25) -> 9 | AC28: =SUM($J25:AC25) -> 9 | AD28: =SUM($J25:AD25) -> 9 | AE28: =SUM($J25:AE25) -> 9 | AF28: =SUM($J25:AF25) -> 9 | AG28: =SUM($J25:AG25) -> 9
E29: ="Cum. "&E26 -> Cum. Disposals | H29: # | J29: =SUM($J26:J26) -> 0 | K29: =SUM($J26:K26) -> 1 | L29: =SUM($J26:L26) -> 1 | M29: =SUM($J26:M26) -> 4 | N29: =SUM($J26:N26) -> 4 | O29: =SUM($J26:O26) -> 6 | P29: =SUM($J26:P26) -> 6 | Q29: =SUM($J26:Q26) -> 6 | R29: =SUM($J26:R26) -> 9 | S29: =SUM($J26:S26) -> 9 | T29: =SUM($J26:T26) -> 9 | U29: =SUM($J26:U26) -> 9 | V29: =SUM($J26:V26) -> 9 | W29: =SUM($J26:W26) -> 9 | X29: =SUM($J26:X26) -> 9 | Y29: =SUM($J26:Y26) -> 9 | Z29: =SUM($J26:Z26) -> 9 | AA29: =SUM($J26:AA26) -> 9 | AB29: =SUM($J26:AB26) -> 9 | AC29: =SUM($J26:AC26) -> 9 | AD29: =SUM($J26:AD26) -> 9 | AE29: =SUM($J26:AE26) -> 9 | AF29: =SUM($J26:AF26) -> 9 | AG29: =SUM($J26:AG26) -> 9
E30: Net | H30: # | J30: =J28-J29 -> 3 | K30: =K28-K29 -> 2 | L30: 4 | M30: 1 | N30: 3 | O30: 1 | P30: 2 | Q30: 3 | R30: 0 | S30: 0 | T30: 0 | U30: 0 | V30: 0 | W30: 0 | X30: 0 | Y30: 0 | Z30: 0 | AA30: 0 | AB30: 0 | AC30: 0 | AD30: 0 | AE30: 0 | AF30: 0 | AG30: 0
E32: Checks: | H32: [1,0] | I32: =MAX(J32:AG32) -> 0 | J32: =(J30<0)*1 -> 0 | K32: =(K30<0)*1 -> 0 | L32: 0 | M32: 0 | N32: 0 | O32: 0 | P32: 0 | Q32: 0 | R32: 0 | S32: 0 | T32: 0 | U32: 0 | V32: 0 | W32: 0 | X32: 0 | Y32: 0 | Z32: 0 | AA32: 0 | AB32: 0 | AC32: 0 | AD32: 0 | AE32: 0 | AF32: 0 | AG32: 0
C35: Summary
D37: Shares Acquired
E39: Opening Balance | H39: $ | J39: =I43 -> 0 | K39: =J43 -> 306 | L39: 208.08 | M39: 424.4832 | N39: 108.243216 | O39: 331.224241 | P39: 112.6162419 | Q39: 229.7371335 | R39: 351.4978143 | S39: 0 | T39: 0 | U39: 0 | V39: 0 | W39: 0 | X39: 0 | Y39: 0 | Z39: 0 | AA39: 0 | AB39: 0 | AC39: 0 | AD39: 0 | AE39: 0 | AF39: 0 | AG39: 0
E40: =E25 -> Acquisitions | H40: $ | J40: =J25*J20 -> 300 | K40: =K25*K20 -> 0 | L40: 208.08 | M40: 0 | N40: 216.486432 | O40: 0 | P40: 112.6162419 | Q40: 114.8685668 | R40: 0 | S40: 0 | T40: 0 | U40: 0 | V40: 0 | W40: 0 | X40: 0 | Y40: 0 | Z40: 0 | AA40: 0 | AB40: 0 | AC40: 0 | AD40: 0 | AE40: 0 | AF40: 0 | AG40: 0
E41: Gain / (Loss) | H41: $ | J41: =SUM(J26,J30)*J$21-SUM(J$39:J$40) -> 6 | K41: =SUM(K26,K30)*K$21-SUM(K$39:K$40) -> 6.12 | L41: 8.3232 | M41: 8.489664 | N41: 6.49459296 | O41: 6.624484819 | P41: 4.504649677 | Q41: 6.892114006 | R41: 7.029956286 | S41: 0 | T41: 0 | U41: 0 | V41: 0 | W41: 0 | X41: 0 | Y41: 0 | Z41: 0 | AA41: 0 | AB41: 0 | AC41: 0 | AD41: 0 | AE41: 0 | AF41: 0 | AG41: 0
E42: =E26 -> Disposals | H42: $ | J42: =-J26*J21 -> 0 | K42: -104.04 | L42: 0 | M42: -324.729648 | N42: 0 | O42: -225.2324839 | P42: 0 | Q42: 0 | R42: -358.5277706 | S42: 0 | T42: 0 | U42: 0 | V42: 0 | W42: 0 | X42: 0 | Y42: 0 | Z42: 0 | AA42: 0 | AB42: 0 | AC42: 0 | AD42: 0 | AE42: 0 | AF42: 0 | AG42: 0
E43: Closing Balance | H43: $ | J43: =SUM(J39:J42) -> 306 | K43: 208.08 | L43: 424.4832 | M43: 108.243216 | N43: 331.224241 | O43: 112.6162419 | P43: 229.7371335 | Q43: 351.4978143 | R43: 0 | S43: 0 | T43: 0 | U43: 0 | V43: 0 | W43: 0 | X43: 0 | Y43: 0 | Z43: 0 | AA43: 0 | AB43: 0 | AC43: 0 | AD43: 0 | AE43: 0 | AF43: 0 | AG43: 0
B46: =MAX($B$10:$B45)+1 -> 2 | C46: Cost Base
C48: Calculations
D50: =C46 -> Cost Base
E52: Payback Period | H52: # | J52: =IF(J26,_xlfn.IFNA(IF(J$9=1,(J$28>=J$29)*1,MATCH(TRUE,$J28:J28>=J$29,0)),),) -> 0 | K52: =IF(K26,_xlfn.IFNA(IF(K$9=1,(K$28>=K$29)*1,MATCH(TRUE,$J28:K28>=K$29,0)),),) -> 1 | L52: =IF(L26,_xlfn.IFNA(IF(L$9=1,(L$28>=L$29)*1,MATCH(TRUE,$J28:L28>=L$29,0)),),) -> 0 | M52: =IF(M26,_xlfn.IFNA(IF(M$9=1,(M$28>=M$29)*1,MATCH(TRUE,$J28:M28>=M$29,0)),),) -> 3 | N52: =IF(N26,_xlfn.IFNA(IF(N$9=1,(N$28>=N$29)*1,MATCH(TRUE,$J28:N28>=N$29,0)),),) -> 0 | O52: =IF(O26,_xlfn.IFNA(IF(O$9=1,(O$28>=O$29)*1,MATCH(TRUE,$J28:O28>=O$29,0)),),) -> 5 | P52: =IF(P26,_xlfn.IFNA(IF(P$9=1,(P$28>=P$29)*1,MATCH(TRUE,$J28:P28>=P$29,0)),),) -> 0 | Q52: =IF(Q26,_xlfn.IFNA(IF(Q$9=1,(Q$28>=Q$29)*1,MATCH(TRUE,$J28:Q28>=Q$29,0)),),) -> 0 | R52: =IF(R26,_xlfn.IFNA(IF(R$9=1,(R$28>=R$29)*1,MATCH(TRUE,$J28:R28>=R$29,0)),),) -> 8 | S52: =IF(S26,_xlfn.IFNA(IF(S$9=1,(S$28>=S$29)*1,MATCH(TRUE,$J28:S28>=S$29,0)),),) -> 0 | T52: =IF(T26,_xlfn.IFNA(IF(T$9=1,(T$28>=T$29)*1,MATCH(TRUE,$J28:T28>=T$29,0)),),) -> 0 | U52: =IF(U26,_xlfn.IFNA(IF(U$9=1,(U$28>=U$29)*1,MATCH(TRUE,$J28:U28>=U$29,0)),),) -> 0 | V52: =IF(V26,_xlfn.IFNA(IF(V$9=1,(V$28>=V$29)*1,MATCH(TRUE,$J28:V28>=V$29,0)),),) -> 0 | W52: =IF(W26,_xlfn.IFNA(IF(W$9=1,(W$28>=W$29)*1,MATCH(TRUE,$J28:W28>=W$29,0)),),) -> 0 | X52: =IF(X26,_xlfn.IFNA(IF(X$9=1,(X$28>=X$29)*1,MATCH(TRUE,$J28:X28>=X$29,0)),),) -> 0 | Y52: =IF(Y26,_xlfn.IFNA(IF(Y$9=1,(Y$28>=Y$29)*1,MATCH(TRUE,$J28:Y28>=Y$29,0)),),) -> 0 | Z52: =IF(Z26,_xlfn.IFNA(IF(Z$9=1,(Z$28>=Z$29)*1,MATCH(TRUE,$J28:Z28>=Z$29,0)),),) -> 0 | AA52: =IF(AA26,_xlfn.IFNA(IF(AA$9=1,(AA$28>=AA$29)*1,MATCH(TRUE,$J28:AA28>=AA$29,0)),),) -> 0 | AB52: =IF(AB26,_xlfn.IFNA(IF(AB$9=1,(AB$28>=AB$29)*1,MATCH(TRUE,$J28:AB28>=AB$29,0)),),) -> 0 | AC52: =IF(AC26,_xlfn.IFNA(IF(AC$9=1,(AC$28>=AC$29)*1,MATCH(TRUE,$J28:AC28>=AC$29,0)),),) -> 0 | AD52: =IF(AD26,_xlfn.IFNA(IF(AD$9=1,(AD$28>=AD$29)*1,MATCH(TRUE,$J28:AD28>=AD$29,0)),),) -> 0 | AE52: =IF(AE26,_xlfn.IFNA(IF(AE$9=1,(AE$28>=AE$29)*1,MATCH(TRUE,$J28:AE28>=AE$29,0)),),) -> 0 | AF52: =IF(AF26,_xlfn.IFNA(IF(AF$9=1,(AF$28>=AF$29)*1,MATCH(TRUE,$J28:AF28>=AF$29,0)),),) -> 0 | AG52: =IF(AG26,_xlfn.IFNA(IF(AG$9=1,(AG$28>=AG$29)*1,MATCH(TRUE,$J28:AG28>=AG$29,0)),),) -> 0
E53: Proportion of Final Period | H53: % | J53: =IF(J$26*J$52,MOD((J$29-OFFSET($I$28,,J$52))/OFFSET($I$25,,J$52),1),) -> 0 | K53: =IF(K$26*K$52,MOD((K$29-OFFSET($I$28,,K$52))/OFFSET($I$25,,K$52),1),) -> 0.3333333333 | L53: 0 | M53: 0.5 | N53: 0 | O53: 0.5 | P53: 0 | Q53: 0 | R53: 0 | S53: 0 | T53: 0 | U53: 0 | V53: 0 | W53: 0 | X53: 0 | Y53: 0 | Z53: 0 | AA53: 0 | AB53: 0 | AC53: 0 | AD53: 0 | AE53: 0 | AF53: 0 | AG53: 0
E54: Cost Base (Long) | H54: $ | J54: =IF(J$26*J$52,SUM(OFFSET($J$40,,,,J$52))-SUM(OFFSET($I$40,,,,J$52))-OFFSET($I$40,,J$52)*(1-J$53)+SUM(OFFSET($I$40,,,,J$52+(J$53=0)*1))-SUM($I$54:I$54),) -> 0 | K54: =IF(K$26*K$52,SUM(OFFSET($J$40,,,,K$52))-SUM(OFFSET($I$40,,,,K$52))-OFFSET($I$40,,K$52)*(1-K$53)+SUM(OFFSET($I$40,,,,K$52+(K$53=0)*1))-SUM($I$54:J$54),) -> 100 | L54: =IF(L$26*L$52,SUM(OFFSET($J$40,,,,L$52))-SUM(OFFSET($I$40,,,,L$52))-OFFSET($I$40,,L$52)*(1-L$53)+SUM(OFFSET($I$40,,,,L$52+(L$53=0)*1))-SUM($I$54:K$54),) -> 0 | M54: =IF(M$26*M$52,SUM(OFFSET($J$40,,,,M$52))-SUM(OFFSET($I$40,,,,M$52))-OFFSET($I$40,,M$52)*(1-M$53)+SUM(OFFSET($I$40,,,,M$52+(M$53=0)*1))-SUM($I$54:L$54),) -> 304.04 | N54: =IF(N$26*N$52,SUM(OFFSET($J$40,,,,N$52))-SUM(OFFSET($I$40,,,,N$52))-OFFSET($I$40,,N$52)*(1-N$53)+SUM(OFFSET($I$40,,,,N$52+(N$53=0)*1))-SUM($I$54:M$54),) -> 0 | O54: =IF(O$26*O$52,SUM(OFFSET($J$40,,,,O$52))-SUM(OFFSET($I$40,,,,O$52))-OFFSET($I$40,,O$52)*(1-O$53)+SUM(OFFSET($I$40,,,,O$52+(O$53=0)*1))-SUM($I$54:N$54),) -> 212.283216 | P54: =IF(P$26*P$52,SUM(OFFSET($J$40,,,,P$52))-SUM(OFFSET($I$40,,,,P$52))-OFFSET($I$40,,P$52)*(1-P$53)+SUM(OFFSET($I$40,,,,P$52+(P$53=0)*1))-SUM($I$54:O$54),) -> 0 | Q54: =IF(Q$26*Q$52,SUM(OFFSET($J$40,,,,Q$52))-SUM(OFFSET($I$40,,,,Q$52))-OFFSET($I$40,,Q$52)*(1-Q$53)+SUM(OFFSET($I$40,,,,Q$52+(Q$53=0)*1))-SUM($I$54:P$54),) -> 0 | R54: =IF(R$26*R$52,SUM(OFFSET($J$40,,,,R$52))-SUM(OFFSET($I$40,,,,R$52))-OFFSET($I$40,,R$52)*(1-R$53)+SUM(OFFSET($I$40,,,,R$52+(R$53=0)*1))-SUM($I$54:Q$54),) -> 335.7280247 | S54: =IF(S$26*S$52,SUM(OFFSET($J$40,,,,S$52))-SUM(OFFSET($I$40,,,,S$52))-OFFSET($I$40,,S$52)*(1-S$53)+SUM(OFFSET($I$40,,,,S$52+(S$53=0)*1))-SUM($I$54:R$54),) -> 0 | T54: =IF(T$26*T$52,SUM(OFFSET($J$40,,,,T$52))-SUM(OFFSET($I$40,,,,T$52))-OFFSET($I$40,,T$52)*(1-T$53)+SUM(OFFSET($I$40,,,,T$52+(T$53=0)*1))-SUM($I$54:S$54),) -> 0 | U54: =IF(U$26*U$52,SUM(OFFSET($J$40,,,,U$52))-SUM(OFFSET($I$40,,,,U$52))-OFFSET($I$40,,U$52)*(1-U$53)+SUM(OFFSET($I$40,,,,U$52+(U$53=0)*1))-SUM($I$54:T$54),) -> 0 | V54: =IF(V$26*V$52,SUM(OFFSET($J$40,,,,V$52))-SUM(OFFSET($I$40,,,,V$52))-OFFSET($I$40,,V$52)*(1-V$53)+SUM(OFFSET($I$40,,,,V$52+(V$53=0)*1))-SUM($I$54:U$54),) -> 0 | W54: =IF(W$26*W$52,SUM(OFFSET($J$40,,,,W$52))-SUM(OFFSET($I$40,,,,W$52))-OFFSET($I$40,,W$52)*(1-W$53)+SUM(OFFSET($I$40,,,,W$52+(W$53=0)*1))-SUM($I$54:V$54),) -> 0 | X54: =IF(X$26*X$52,SUM(OFFSET($J$40,,,,X$52))-SUM(OFFSET($I$40,,,,X$52))-OFFSET($I$40,,X$52)*(1-X$53)+SUM(OFFSET($I$40,,,,X$52+(X$53=0)*1))-SUM($I$54:W$54),) -> 0 | Y54: =IF(Y$26*Y$52,SUM(OFFSET($J$40,,,,Y$52))-SUM(OFFSET($I$40,,,,Y$52))-OFFSET($I$40,,Y$52)*(1-Y$53)+SUM(OFFSET($I$40,,,,Y$52+(Y$53=0)*1))-SUM($I$54:X$54),) -> 0 | Z54: =IF(Z$26*Z$52,SUM(OFFSET($J$40,,,,Z$52))-SUM(OFFSET($I$40,,,,Z$52))-OFFSET($I$40,,Z$52)*(1-Z$53)+SUM(OFFSET($I$40,,,,Z$52+(Z$53=0)*1))-SUM($I$54:Y$54),) -> 0 | AA54: =IF(AA$26*AA$52,SUM(OFFSET($J$40,,,,AA$52))-SUM(OFFSET($I$40,,,,AA$52))-OFFSET($I$40,,AA$52)*(1-AA$53)+SUM(OFFSET($I$40,,,,AA$52+(AA$53=0)*1))-SUM($I$54:Z$54),) -> 0 | AB54: =IF(AB$26*AB$52,SUM(OFFSET($J$40,,,,AB$52))-SUM(OFFSET($I$40,,,,AB$52))-OFFSET($I$40,,AB$52)*(1-AB$53)+SUM(OFFSET($I$40,,,,AB$52+(AB$53=0)*1))-SUM($I$54:AA$54),) -> 0 | AC54: =IF(AC$26*AC$52,SUM(OFFSET($J$40,,,,AC$52))-SUM(OFFSET($I$40,,,,AC$52))-OFFSET($I$40,,AC$52)*(1-AC$53)+SUM(OFFSET($I$40,,,,AC$52+(AC$53=0)*1))-SUM($I$54:AB$54),) -> 0 | AD54: =IF(AD$26*AD$52,SUM(OFFSET($J$40,,,,AD$52))-SUM(OFFSET($I$40,,,,AD$52))-OFFSET($I$40,,AD$52)*(1-AD$53)+SUM(OFFSET($I$40,,,,AD$52+(AD$53=0)*1))-SUM($I$54:AC$54),) -> 0 | AE54: =IF(AE$26*AE$52,SUM(OFFSET($J$40,,,,AE$52))-SUM(OFFSET($I$40,,,,AE$52))-OFFSET($I$40,,AE$52)*(1-AE$53)+SUM(OFFSET($I$40,,,,AE$52+(AE$53=0)*1))-SUM($I$54:AD$54),) -> 0 | AF54: =IF(AF$26*AF$52,SUM(OFFSET($J$40,,,,AF$52))-SUM(OFFSET($I$40,,,,AF$52))-OFFSET($I$40,,AF$52)*(1-AF$53)+SUM(OFFSET($I$40,,,,AF$52+(AF$53=0)*1))-SUM($I$54:AE$54),) -> 0 | AG54: =IF(AG$26*AG$52,SUM(OFFSET($J$40,,,,AG$52))-SUM(OFFSET($I$40,,,,AG$52))-OFFSET($I$40,,AG$52)*(1-AG$53)+SUM(OFFSET($I$40,,,,AG$52+(AG$53=0)*1))-SUM($I$54:AF$54),) -> 0
E55: Cost Base (Short) | H55: $ | J55: =IF(J$26*J$52,OFFSET($I$40,,J$52)*J$53+SUM(OFFSET($I$40,,,,J$52+(J$53=0)*1))-SUM($I$55:I$55),) -> 0 | K55: =IF(K$26*K$52,OFFSET($I$40,,K$52)*K$53+SUM(OFFSET($I$40,,,,K$52+(K$53=0)*1))-SUM($I$55:J$55),) -> 100 | L55: =IF(L$26*L$52,OFFSET($I$40,,L$52)*L$53+SUM(OFFSET($I$40,,,,L$52+(L$53=0)*1))-SUM($I$55:K$55),) -> 0 | M55: =IF(M$26*M$52,OFFSET($I$40,,M$52)*M$53+SUM(OFFSET($I$40,,,,M$52+(M$53=0)*1))-SUM($I$55:L$55),) -> 304.04 | N55: =IF(N$26*N$52,OFFSET($I$40,,N$52)*N$53+SUM(OFFSET($I$40,,,,N$52+(N$53=0)*1))-SUM($I$55:M$55),) -> 0 | O55: =IF(O$26*O$52,OFFSET($I$40,,O$52)*O$53+SUM(OFFSET($I$40,,,,O$52+(O$53=0)*1))-SUM($I$55:N$55),) -> 212.283216 | P55: =IF(P$26*P$52,OFFSET($I$40,,P$52)*P$53+SUM(OFFSET($I$40,,,,P$52+(P$53=0)*1))-SUM($I$55:O$55),) -> 0 | Q55: =IF(Q$26*Q$52,OFFSET($I$40,,Q$52)*Q$53+SUM(OFFSET($I$40,,,,Q$52+(Q$53=0)*1))-SUM($I$55:P$55),) -> 0 | R55: =IF(R$26*R$52,OFFSET($I$40,,R$52)*R$53+SUM(OFFSET($I$40,,,,R$52+(R$53=0)*1))-SUM($I$55:Q$55),) -> 335.7280247 | S55: =IF(S$26*S$52,OFFSET($I$40,,S$52)*S$53+SUM(OFFSET($I$40,,,,S$52+(S$53=0)*1))-SUM($I$55:R$55),) -> 0 | T55: =IF(T$26*T$52,OFFSET($I$40,,T$52)*T$53+SUM(OFFSET($I$40,,,,T$52+(T$53=0)*1))-SUM($I$55:S$55),) -> 0 | U55: =IF(U$26*U$52,OFFSET($I$40,,U$52)*U$53+SUM(OFFSET($I$40,,,,U$52+(U$53=0)*1))-SUM($I$55:T$55),) -> 0 | V55: =IF(V$26*V$52,OFFSET($I$40,,V$52)*V$53+SUM(OFFSET($I$40,,,,V$52+(V$53=0)*1))-SUM($I$55:U$55),) -> 0 | W55: =IF(W$26*W$52,OFFSET($I$40,,W$52)*W$53+SUM(OFFSET($I$40,,,,W$52+(W$53=0)*1))-SUM($I$55:V$55),) -> 0 | X55: =IF(X$26*X$52,OFFSET($I$40,,X$52)*X$53+SUM(OFFSET($I$40,,,,X$52+(X$53=0)*1))-SUM($I$55:W$55),) -> 0 | Y55: =IF(Y$26*Y$52,OFFSET($I$40,,Y$52)*Y$53+SUM(OFFSET($I$40,,,,Y$52+(Y$53=0)*1))-SUM($I$55:X$55),) -> 0 | Z55: =IF(Z$26*Z$52,OFFSET($I$40,,Z$52)*Z$53+SUM(OFFSET($I$40,,,,Z$52+(Z$53=0)*1))-SUM($I$55:Y$55),) -> 0 | AA55: =IF(AA$26*AA$52,OFFSET($I$40,,AA$52)*AA$53+SUM(OFFSET($I$40,,,,AA$52+(AA$53=0)*1))-SUM($I$55:Z$55),) -> 0 | AB55: =IF(AB$26*AB$52,OFFSET($I$40,,AB$52)*AB$53+SUM(OFFSET($I$40,,,,AB$52+(AB$53=0)*1))-SUM($I$55:AA$55),) -> 0 | AC55: =IF(AC$26*AC$52,OFFSET($I$40,,AC$52)*AC$53+SUM(OFFSET($I$40,,,,AC$52+(AC$53=0)*1))-SUM($I$55:AB$55),) -> 0 | AD55: =IF(AD$26*AD$52,OFFSET($I$40,,AD$52)*AD$53+SUM(OFFSET($I$40,,,,AD$52+(AD$53=0)*1))-SUM($I$55:AC$55),) -> 0 | AE55: =IF(AE$26*AE$52,OFFSET($I$40,,AE$52)*AE$53+SUM(OFFSET($I$40,,,,AE$52+(AE$53=0)*1))-SUM($I$55:AD$55),) -> 0 | AF55: =IF(AF$26*AF$52,OFFSET($I$40,,AF$52)*AF$53+SUM(OFFSET($I$40,,,,AF$52+(AF$53=0)*1))-SUM($I$55:AE$55),) -> 0 | AG55: =IF(AG$26*AG$52,OFFSET($I$40,,AG$52)*AG$53+SUM(OFFSET($I$40,,,,AG$52+(AG$53=0)*1))-SUM($I$55:AF$55),) -> 0
B58: =MAX($B$10:$B57)+1 -> 3 | C58: Profit or Loss
C60: Summary
D62: Profit / (Loss) on Sale of Shares
E64: Disposal Proceeds | H64: $ | J64: =-J42 -> 0 | K64: =-K42 -> 104.04 | L64: 0 | M64: 324.729648 | N64: 0 | O64: 225.2324839 | P64: 0 | Q64: 0 | R64: 358.5277706 | S64: 0 | T64: 0 | U64: 0 | V64: 0 | W64: 0 | X64: 0 | Y64: 0 | Z64: 0 | AA64: 0 | AB64: 0 | AC64: 0 | AD64: 0 | AE64: 0 | AF64: 0 | AG64: 0
E65: Cost Base | H65: $ | J65: =-J55 -> 0 | K65: =-K55 -> -100 | L65: 0 | M65: -304.04 | N65: 0 | O65: -212.283216 | P65: 0 | Q65: 0 | R65: -335.7280247 | S65: 0 | T65: 0 | U65: 0 | V65: 0 | W65: 0 | X65: 0 | Y65: 0 | Z65: 0 | AA65: 0 | AB65: 0 | AC65: 0 | AD65: 0 | AE65: 0 | AF65: 0 | AG65: 0
E66: Profit / (Loss) | H66: $ | J66: =SUM(J64:J65) -> 0 | K66: =SUM(K64:K65) -> 4.04 | L66: 0 | M66: 20.689648 | N66: 0 | O66: 12.94926785 | P66: 0 | Q66: 0 | R66: 22.7997459 | S66: 0 | T66: 0 | U66: 0 | V66: 0 | W66: 0 | X66: 0 | Y66: 0 | Z66: 0 | AA66: 0 | AB66: 0 | AC66: 0 | AD66: 0 | AE66: 0 | AF66: 0 | AG66: 0

Sheet Timing
A1: =IF(ISERROR(RIGHT(CELL("filename",A1),LEN(CELL("filename",A1))-FIND("]",CELL("filename",A1)))), "", RIGHT(CELL("filename",A1),LEN(CELL("filename",A1))-FIND("]",CELL("filename",A1)))) -> Timing
A2: =Model_Name -> SP Calculating Inventory on a FIFO Basis.xlsm
A3: Navigator
B4: Error Checks: | F4: =Overall_Error_Check -> 0
J5: =J$7 -> 2021-03-31 | K5: =K$7 -> 2021-06-30 | L5: =L$7 -> 2021-09-30 | M5: =M$7 -> 2021-12-31 | N5: =N$7 -> 2022-03-31 | O5: =O$7 -> 2022-06-30 | P5: 2022-09-30 | Q5: 2022-12-31 | R5: 2023-03-31 | S5: 2023-06-30 | T5: 2023-09-30 | U5: 2023-12-31 | V5: 2024-03-31 | W5: 2024-06-30 | X5: 2024-09-30 | Y5: 2024-12-31 | Z5: 2025-03-31 | AA5: =AA$7 -> 2025-06-30 | AB5: 2025-09-30 | AC5: 2025-12-31 | AD5: 2026-03-31 | AE5: 2026-06-30 | AF5: 2026-09-30 | AG5: 2026-12-31
C6: Start Date | J6: =IF(J$9=1,Model_Start_Date,I$7+1) -> 2021-01-06 | K6: 2021-04-01 | L6: 2021-07-01 | M6: 2021-10-01 | N6: 2022-01-01 | O6: 2022-04-01 | P6: 2022-07-01 | Q6: 2022-10-01 | R6: 2023-01-01 | S6: 2023-04-01 | T6: 2023-07-01 | U6: 2023-10-01 | V6: 2024-01-01 | W6: 2024-04-01 | X6: 2024-07-01 | Y6: 2024-10-01 | Z6: 2025-01-01 | AA6: 2025-04-01 | AB6: 2025-07-01 | AC6: 2025-10-01 | AD6: 2026-01-01 | AE6: 2026-04-01 | AF6: 2026-07-01 | AG6: 2026-10-01
C7: End Date | J7: =EOMONTH(J$6,MOD(Periodicity+Reporting_Month_Factor-MONTH(J$6),Periodicity)) -> 2021-03-31 | K7: 2021-06-30 | L7: 2021-09-30 | M7: 2021-12-31 | N7: 2022-03-31 | O7: 2022-06-30 | P7: 2022-09-30 | Q7: 2022-12-31 | R7: 2023-03-31 | S7: 2023-06-30 | T7: 2023-09-30 | U7: 2023-12-31 | V7: 2024-03-31 | W7: 2024-06-30 | X7: 2024-09-30 | Y7: 2024-12-31 | Z7: 2025-03-31 | AA7: 2025-06-30 | AB7: 2025-09-30 | AC7: 2025-12-31 | AD7: 2026-03-31 | AE7: 2026-06-30 | AF7: 2026-09-30 | AG7: 2026-12-31
C8: Number of Days | J8: =J7-J6+1 -> 85 | K8: =K7-K6+1 -> 91 | L8: 92 | M8: 92 | N8: 90 | O8: =O7-O6+1 -> 91 | P8: 92 | Q8: 92 | R8: 90 | S8: 91 | T8: 92 | U8: 92 | V8: 91 | W8: 91 | X8: 92 | Y8: 92 | Z8: 90 | AA8: 91 | AB8: =AB7-AB6+1 -> 92 | AC8: 92 | AD8: =AD7-AD6+1 -> 90 | AE8: 91 | AF8: 92 | AG8: 92
C9: Counter | J9: =N(I$9)+1 -> 1 | K9: =N(J$9)+1 -> 2 | L9: 3 | M9: 4 | N9: 5 | O9: =N(N$9)+1 -> 6 | P9: =N(O$9)+1 -> 7 | Q9: =N(P$9)+1 -> 8 | R9: =N(Q$9)+1 -> 9 | S9: =N(R$9)+1 -> 10 | T9: =N(S$9)+1 -> 11 | U9: =N(T$9)+1 -> 12 | V9: =N(U$9)+1 -> 13 | W9: =N(V$9)+1 -> 14 | X9: =N(W$9)+1 -> 15 | Y9: =N(X$9)+1 -> 16 | Z9: =N(Y$9)+1 -> 17 | AA9: =N(Z$9)+1 -> 18 | AB9: =N(AA$9)+1 -> 19 | AC9: =N(AB$9)+1 -> 20 | AD9: =N(AC$9)+1 -> 21 | AE9: =N(AD$9)+1 -> 22 | AF9: =N(AE$9)+1 -> 23 | AG9: =N(AF$9)+1 -> 24
B11: =MAX($B$10:$B10)+1 -> 1 | C11: Timing Assumptions
C13: Data (do not change once modelling has commenced)
D15: Model Start Date | H15: =TODAY() -> 2021-01-06
D17: Number of Months in a Full Period | H17: 3
D19: Example Reporting Month | H19: 12 | I19: ="e.g. "&TEXT(DATE(YEAR(Model_Start_Date)+IF(Example_Reporting_Month<MONTH(Model_Start_Date),1,0),Example_Reporting_Month+1,1)-1,"dd-Mmm-yy") -> e.g. 31-Dec-21
D21: Reporting Month Factor | H21: =MOD(Example_Reporting_Month-1,Periodicity)+1 -> 3

Sheet Error Checks
A1: =IF(ISERROR(RIGHT(CELL("filename",A1),LEN(CELL("filename",A1))-FIND("]",CELL("filename",A1)))), "", RIGHT(CELL("filename",A1),LEN(CELL("filename",A1))-FIND("]",CELL("filename",A1)))) -> Error Checks
A2: =Model_Name -> SP Calculating Inventory on a FIFO Basis.xlsm
A3: Navigator
B4: Error Checks: | F4: =Overall_Error_Check -> 0
B6: =MAX($B$5:$B5)+1 -> 1 | C6: Error Checks
C8: Summary of Errors
D10: Assumptions
E12: Movement in Shares is not net negative | I12: =HL_Movements -> 0
E17: =C8 -> Summary of Errors | I17: =MIN(1,SUM(I11:I15)) -> 0
